bitfinex-derivatives/quotes_ETHF0:USTF0_20241231
["timestamp","ask_amount","ask_price","bid_price","bid_amount"]
[1735668374778,3.2078,3370.0,3369.2,0.8045]
[1735668374984,0.29721,3369.5,3369.1,3.50503]
[1735668375187,0.29721,3369.5,3369.1,0.29723]
[1735668375675,0.7522,3369.9,3369.3,0.29722]
[1735668375676,0.29719,3369.7,3369.3,0.29722]
[1735668375879,0.2972,3369.7,3369.0,0.29725]
[1735668376074,0.7891,3369.8,3368.9,10.00720582]
[1735668376270,3.2078,3370.0,3369.5,3.2078]
[1735668376479,3.2078,3370.0,3369.6,0.2972]
[1735668376697,3.2078,3370.0,3369.1,3.9376]
[1735668376879,3.2078,3370.0,3369.3,0.29722]
[1735668377079,3.2078,3370.2,3369.1,3.2078]
[1735668377281,0.29719,3369.7,3369.1,3.2078]
[1735668377589,0.29719,3369.8,3369.4,0.29721]
[1735668377784,0.29719,3369.7,3369.3,0.29722]
[1735668377978,3.2078,3369.7,3369.1,3.2078]
[1735668378184,3.2078,3369.7,3368.7,3.2078]
[1735668378185,0.29723,3369.3,3368.7,3.2078]
[1735668378482,3.2078,3369.3,3368.7,1.376]
[1735668378684,3.2078,3369.3,3368.9,0.29726]
[1735668378883,3.50503,3369.3,3368.9,0.29726]
[1735668379180,0.29725,3369.0,3368.7,1.376]
[1735668379377,0.29727,3368.8,3368.5,2.88606582]
[1735668379579,3.2078,3369.3,3368.5,2.88606582]
[1735668379782,0.29733,3368.2,3367.9,1.376]
[1735668379977,3.2078,3368.5,3367.4,3.2078]
[1735668380186,3.2078,3368.1,3367.4,3.2078]
[1735668380491,0.29734,3368.0,3367.6,0.29737]
[1735668380686,3.2078,3368.1,3367.4,3.2078]
[1735668380888,0.29736,3367.8,3367.4,0.29739]
[1735668382580,0.29738,3367.6,3367.2,0.29741]
[1735668382782,0.29738,3367.5,3367.2,0.29741]
[1735668382988,0.29738,3367.5,3367.1,8.809]
[1735668382989,0.29735,3367.9,3367.5,0.29738]
[1735668383185,0.29738,3367.6,3367.2,0.2974]
[1735668383387,3.9635,3368.1,3367.1,1.376]
[1735668383588,0.29736,3367.8,3367.4,0.29739]
[1735668384085,0.29736,3367.8,3367.1,1.377]
[1735668384281,3.9635,3368.1,3367.1,1.377]
[1735668384588,3.9635,3368.1,3367.8,0.29735]
[1735668384787,1.05303,3368.1,3367.7,0.29736]
[1735668384989,1.05303,3368.1,3367.3,6.09386582]
[1735668385186,1.05303,3368.1,3367.7,0.29736]
[1735668385488,0.7557,3368.1,3367.3,11.09386582]
[1735668385691,0.7557,3368.1,3368.0,0.29734]
[1735668386090,0.7557,3368.1,3367.5,0.74346]
[1735668386091,3.9749,3368.5,3367.7,6.09386582]
[1735668386389,3.9749,3368.5,3368.2,0.29731]
[1735668386592,3.2078,3368.5,3368.4,0.2973]
[1735668386796,1.09007,3368.8,3368.5,0.29729]
[1735668387089,3.2078,3369.0,3368.1,11.09386582]
[1735668387285,0.29725,3369.1,3368.7,0.29727]
[1735668387584,0.29726,3368.9,3368.5,0.29729]
[1735668387785,0.29725,3369.0,3368.1,6.83719582]
[1735668387990,0.29725,3369.0,3368.7,0.29727]
[1735668388194,0.7342,3369.2,3368.1,6.83719582]
[1735668388387,0.29725,3369.0,3368.7,0.29727]
[1735668388984,3.50505,3369.0,3368.8,0.29726]
[1735668389286,3.2078,3369.0,3368.2,0.74331]
[1735668389487,0.29726,3368.9,3368.2,0.74331]
[1735668389902,0.29726,3368.9,3368.7,0.29727]
[1735668390589,0.29726,3368.9,3368.2,0.74331]
[1735668390789,0.29726,3369.0,3368.4,0.2973]
[1735668390990,0.7342,3369.2,3368.4,0.74326]
[1735668391193,3.9718,3369.8,3368.6,3.2078]
[1735668391391,0.29721,3369.5,3369.4,0.29721]
[1735668391587,0.29724,3369.1,3369.0,1.377]
[1735668391895,0.29724,3369.1,3369.0,1.67425]
[1735668392294,0.29724,3369.1,3369.0,1.377]
[1735668393394,0.29727,3368.9,3368.7,0.29727]
[1735668393692,0.29726,3368.9,3368.7,0.29727]
[1735668393994,0.74307,3369.3,3368.7,0.29728]
[1735668394186,0.29726,3369.0,3368.8,0.29726]
[1735668394393,3.2078,3369.0,3368.4,1.376]
[1735668394585,3.50505,3369.0,3368.8,0.29726]
[1735668394788,3.50506,3368.9,3368.7,0.29727]
[1735668394989,0.29728,3368.7,3368.4,0.29729]
[1735668395387,0.29728,3368.7,3368.5,0.29729]
[1735668395599,0.29728,3368.7,3368.2,4.5838]
[1735668395600,0.29728,3368.7,3368.4,0.2973]
[1735668395795,0.7459,3368.8,3368.7,0.29728]
[1735668396501,0.7459,3368.8,3368.6,0.29728]
[1735668396696,1.04317,3368.8,3368.6,0.29728]
[1735668397197,0.7459,3368.8,3368.2,4.5838]
[1735668397390,0.7394,3369.1,3368.8,0.29726]
[1735668397596,1.03664,3369.1,3368.9,0.29725]
[1735668397789,1.03664,3369.1,3368.8,0.29726]
[1735668397790,0.29725,3369.0,3368.8,0.29726]
[1735668398002,0.29726,3368.9,3368.7,0.29727]
[1735668398296,0.7394,3369.1,3368.7,0.29727]
[1735668398592,0.7394,3369.1,3368.3,0.74327]
[1735668398814,0.29726,3368.9,3368.7,0.29728]
[1735668399199,0.29728,3368.7,3368.2,4.5838]
[1735668399395,3.2078,3368.9,3368.4,0.2973]
[1735668399596,0.29726,3368.9,3368.6,0.29728]
[1735668399800,0.7394,3369.1,3368.2,4.5838]
[1735668399801,3.2078,3369.0,3368.2,4.5838]
[1735668400000,3.2078,3369.0,3368.3,0.74329]
[1735668400302,0.7394,3369.1,3369.0,0.29725]
[1735668401098,1.03664,3369.1,3368.9,0.29725]
[1735668401591,0.29727,3368.8,3368.6,0.29728]
[1735668401819,3.2078,3369.0,3368.2,4.5838]
[1735668401995,0.29729,3368.6,3368.4,0.2973]
[1735668402196,0.29729,3368.6,3368.2,4.5838]
[1735668402400,0.29729,3368.6,3368.4,0.2973]
[1735668402903,0.7663,3368.9,3368.2,4.5838]
[1735668403198,0.7663,3368.9,3367.8,8.92998]
[1735668403199,0.29734,3368.0,3367.8,3.50515]
[1735668403405,0.74328,3368.4,3367.4,1.376]
[1735668403604,0.29736,3367.8,3367.6,4.93758514]
[1735668403898,1.06855,3367.9,3367.7,0.29736]
[1735668404101,3.2078,3368.2,3367.4,1.376]
[1735668404307,3.50512,3368.2,3367.4,1.376]
[1735668404601,3.2078,3368.2,3367.4,1.376]
[1735668404897,3.2078,3368.2,3367.3,4.64021514]
[1735668405291,0.29739,3367.5,3367.3,0.2974]
[1735668405494,2.88606582,3367.6,3366.7,4.64021514]
[1735668405694,0.29744,3366.8,3366.7,4.64021514]
[1735668407399,0.29743,3367.0,3366.4,0.29747]
[1735668407595,3.2078,3366.6,3366.5,0.29747]
[1735668407795,0.29744,3366.9,3366.7,0.29745]
[1735668408403,3.50521,3367.2,3366.2,3.2078]
[1735668408604,3.2078,3367.2,3367.0,0.29742]
[1735668408803,0.29742,3367.1,3366.5,0.29747]
[1735668409109,0.29742,3367.1,3366.4,0.74371]
[1735668409110,3.50521,3367.2,3367.0,0.29743]
[1735668409410,3.2078,3367.2,3366.9,0.29743]
[1735668409706,3.2078,3367.2,3366.2,3.2078]
[1735668410306,0.29744,3366.9,3366.7,0.29745]
[1735668410499,3.2078,3367.2,3366.2,3.2078]
[1735668410702,0.29743,3367.0,3366.7,0.29745]
[1735668410903,3.2078,3367.2,3366.2,3.2078]
[1735668411104,0.29747,3366.5,3366.3,0.29748]
[1735668411408,3.2078,3366.7,3366.3,0.29748]
[1735668411409,0.29746,3366.6,3366.3,0.29748]
[1735668411805,3.2078,3366.7,3366.2,1.375]
[1735668412004,1.01767,3366.6,3366.3,0.29749]
[1735668412205,0.7202,3366.6,3366.2,1.375]
[1735668412406,0.7202,3366.6,3366.5,0.29747]
[1735668412703,0.7202,3366.6,3366.2,1.375]
[1735668412704,3.2078,3367.2,3366.7,0.29745]
[1735668412906,3.2078,3367.2,3366.3,1.375]
[1735668412907,0.7202,3367.3,3366.9,0.29743]
[1735668413118,0.7202,3367.3,3366.6,3.2078]
[1735668413315,0.29735,3367.9,3367.0,3.2078]
[1735668413519,0.7202,3368.0,3367.4,3.2078]
[1735668413716,0.7202,3368.0,3367.8,0.29735]
[1735668414018,0.7202,3368.0,3367.9,0.29735]
[1735668414416,3.42600207,3368.1,3368.0,0.29734]
[1735668415226,0.7202,3368.5,3368.4,0.2973]
[1735668415426,3.2078,3368.9,3368.1,3.62939582]
[1735668415625,3.2078,3368.9,3368.8,0.29727]
[1735668415823,3.2078,3368.9,3368.7,0.29727]
[1735668416523,0.29724,3369.2,3368.9,0.29726]
[1735668416825,0.7378,3369.3,3368.5,1.04053]
[1735668417024,0.7378,3369.3,3369.0,0.29724]
[1735668417222,0.7378,3369.3,3368.7,1.375]
[1735668417721,1.03502,3369.3,3368.7,1.375]
[1735668417922,1.03502,3369.3,3369.0,0.29725]
[1735668418323,0.7378,3369.3,3368.7,1.375]
[1735668418526,0.7378,3369.3,3368.7,4.5828]
[1735668418729,3.2078,3369.5,3369.2,0.29723]
[1735668418920,3.2078,3369.5,3368.8,0.74318]
[1735668419125,3.2078,3369.5,3369.4,0.29721]
[1735668419317,0.7874,3369.7,3368.9,2.88606582]
[1735668419524,3.2078,3370.0,3369.1,3.2078]
[1735668419724,3.2078,3370.0,3369.8,0.29717]
[1735668420124,3.2078,3370.0,3368.9,2.88606582]
[1735668420529,0.2972,3369.6,3369.0,0.29725]
[1735668420730,0.2972,3369.6,3369.3,0.29722]
[1735668421330,0.29719,3369.8,3369.5,0.2972]
[1735668421529,0.29719,3369.8,3368.9,3.62921582]
[1735668421734,3.2078,3370.0,3369.7,0.29718]
[1735668421936,3.2078,3370.0,3369.2,0.74309]
[1735668422232,0.7096,3370.1,3369.1,3.2078]
[1735668422425,3.9174,3370.1,3369.7,0.29718]
[1735668422625,0.7096,3370.1,3369.7,0.29718]
[1735668423031,0.29716,3370.0,3369.7,0.29718]
[1735668423228,0.7874,3370.3,3369.1,3.2078]
[1735668423229,0.29715,3370.2,3369.1,3.2078]
[1735668423434,0.7874,3370.3,3369.5,3.2078]
[1735668423735,3.2078,3370.5,3370.3,0.29713]
[1735668423923,3.2078,3370.5,3370.4,0.29713]
[1735668425525,3.2078,3370.5,3370.4,1.67213]
[1735668425732,3.2078,3371.2,3370.8,0.2971]
[1735668425935,3.50487,3371.2,3370.8,0.2971]
[1735668426235,1.10392874,3371.3,3370.9,2.88606582]
[1735668426432,1.10392874,3371.3,3371.2,3.50486]
[1735668426633,3.42600207,3371.8,3371.7,0.29702]
[1735668427338,3.42600207,3371.8,3371.2,4.5828]
[1735668428026,0.297,3372.0,3371.2,4.5828]
[1735668428328,3.2078,3371.8,3371.2,4.5828]
[1735668428531,3.2078,3371.8,3371.3,0.29706]
[1735668428735,3.2078,3371.8,3371.2,3.2078]
[1735668428939,3.50482,3371.8,3371.2,3.2078]
[1735668429132,3.50482,3371.8,3371.3,0.29706]
[1735668429333,0.29708,3371.2,3370.7,3.50491]
[1735668429534,3.2078,3371.0,3370.6,0.29712]
[1735668429735,3.2078,3371.0,3370.6,0.29713]
[1735668429935,3.2078,3371.0,3370.8,0.2971]
[1735668430134,3.2078,3371.0,3370.5,1.375]
[1735668430342,3.2078,3371.0,3370.9,0.2971]
[1735668430935,3.2078,3371.0,3370.6,0.29713]
[1735668431235,0.29712,3370.8,3369.9,3.58736582]
[1735668431435,3.2078,3370.6,3370.0,1.374]
[1735668431637,3.50493,3370.6,3370.2,0.29716]
[1735668431836,3.50493,3370.6,3370.0,1.374]
[1735668431837,3.2078,3370.6,3370.0,1.374]
[1735668432332,3.50494,3370.6,3370.1,0.29717]
[1735668432542,3.2078,3370.2,3370.0,1.67118]
[1735668433042,3.2078,3370.2,3369.9,0.29719]
[1735668433238,3.2078,3370.2,3369.8,1.374]
[1735668433637,3.2078,3370.2,3369.9,0.29717]
[1735668433839,3.2078,3370.2,3369.8,1.374]
[1735668434233,3.2078,3370.7,3369.8,4.5818]
[1735668434436,3.2078,3370.7,3369.8,9.5818]
[1735668434740,3.2078,3370.7,3370.6,0.29711]
[1735668436043,3.5049,3370.7,3370.0,0.29716]
[1735668436245,3.5049,3370.7,3370.3,0.29713]
[1735668436443,3.2078,3370.7,3370.3,0.29713]
[1735668436638,3.2078,3370.7,3369.9,6.09386582]
[1735668436846,3.2078,3370.7,3369.9,3.2078]
[1735668437048,3.5049,3370.7,3370.3,0.29713]
[1735668437248,3.5049,3370.7,3369.9,6.09386582]
[1735668437249,3.2078,3370.7,3369.9,6.09386582]
[1735668437445,3.2078,3370.7,3369.8,1.374]
[1735668437652,3.2078,3370.7,3370.4,0.29713]
[1735668438151,3.50491,3370.7,3370.0,0.29716]
[1735668438349,3.2078,3370.7,3370.2,0.29714]
[1735668438554,0.29711,3370.6,3370.2,0.29714]
[1735668438854,3.2078,3370.7,3369.9,6.09386582]
[1735668439245,3.2078,3370.9,3369.9,6.09386582]
[1735668439846,0.2971,3370.8,3370.5,0.29712]
[1735668440148,1.03507,3371.1,3370.7,0.2971]
[1735668440347,0.29708,3371.0,3370.7,0.2971]
[1735668440547,0.29708,3370.9,3370.6,0.29711]
[1735668441049,0.738,3371.1,3370.7,0.2971]
[1735668441050,0.29708,3371.0,3370.7,0.2971]
[1735668441249,3.2078,3370.9,3370.8,0.29709]
[1735668441850,0.738,3371.1,3370.3,3.95063]
[1735668442051,0.738,3371.1,3371.0,0.29707]
[1735668443348,0.7292,3371.4,3371.3,0.29705]
[1735668443843,0.7292,3371.4,3371.1,3.2078]
[1735668443844,0.7297,3371.7,3371.6,0.29702]
[1735668444445,0.7625,3372.1,3372.0,0.29699]
[1735668445355,4.6929,3372.6,3371.5,6.09386582]
[1735668445755,3.2078,3372.2,3371.2,0.661]
[1735668445961,3.2078,3372.2,3371.9,0.29699]
[1735668446156,3.2078,3372.2,3371.8,0.297]
[1735668446157,0.29699,3372.0,3371.8,0.297]
[1735668446359,3.2078,3372.2,3371.2,1.40363]
[1735668446652,2.22745,3372.6,3371.8,0.297]
[1735668446859,0.29699,3372.0,3371.8,0.297]
[1735668447056,0.29698,3372.1,3371.9,0.29699]
[1735668447251,0.29697,3372.2,3371.9,0.29699]
[1735668447457,0.29699,3372.0,3371.2,1.40363]
[1735668447656,0.29699,3372.0,3371.8,0.297]
[1735668447962,3.2078,3372.3,3371.7,0.29701]
[1735668448161,3.2078,3372.3,3371.3,0.74262]
[1735668448461,3.2078,3372.3,3371.8,0.297]
[1735668448670,0.29698,3372.1,3371.8,0.297]
[1735668448863,0.29698,3372.1,3371.9,0.29699]
[1735668449461,0.29697,3372.2,3371.9,0.29699]
[1735668476186,0.29697,3372.2,3371.7,0.29701]
[1735668476379,0.29697,3372.2,3371.6,3.2078]
[1735668476684,0.29698,3372.1,3371.7,0.29701]
[1735668476895,0.29698,3372.1,3371.6,3.2078]
[1735668477180,0.29697,3372.2,3371.9,2.88606582]
[1735668477777,0.29697,3372.2,3372.1,0.29698]
[1735668478693,0.29697,3372.2,3372.0,4.87578]
[1735668478881,0.29697,3372.2,3371.5,6.09386582]
[1735668479079,0.29697,3372.2,3371.6,1.371]
[1735668479277,0.29697,3372.2,3371.8,0.297]
[1735668479477,1.5264,3372.3,3371.6,1.371]
[1735668479880,0.29697,3372.2,3371.9,0.29699]
[1735668480085,0.29697,3372.2,3371.8,0.297]
[1735668480485,0.29697,3372.2,3371.9,0.29699]
[1735668480685,1.5264,3372.3,3371.6,1.371]
[1735668480981,1.5264,3372.3,3372.2,0.29697]
[1735668481594,1.5264,3372.3,3371.9,6.09386582]
[1735668481888,1.82336,3372.3,3372.0,0.29699]
[1735668482283,1.5264,3372.3,3372.0,0.29699]
[1735668482482,1.82336,3372.3,3372.0,0.29699]
[1735668482686,1.82336,3372.3,3371.5,0.74256]
[1735668482687,3.2078,3372.2,3371.5,6.09386582]
[1735668482989,0.297,3371.9,3371.6,1.66802]
[1735668483182,0.5536,3371.8,3371.6,1.371]
[1735668483380,0.5536,3371.8,3371.7,0.29701]
[1735668483988,0.5536,3371.8,3371.6,0.29701]
[1735668484186,0.5536,3371.8,3371.5,3.50482]
[1735668484187,0.85061,3371.8,3371.5,3.50482]
[1735668484385,0.5536,3371.8,3371.6,0.29702]
[1735668484586,0.5536,3371.8,3371.7,0.29701]
[1735668487483,0.5536,3371.8,3371.5,6.09386582]
[1735668487689,0.5536,3371.8,3371.2,0.74263]
[1735668487690,0.5536,3371.8,3371.4,1.371]
[1735668487995,0.5536,3371.8,3371.7,0.29701]
[1735668492201,0.85061,3371.8,3371.4,0.29704]
[1735668492499,0.5536,3371.8,3371.6,0.29702]
[1735668493192,0.5536,3371.8,3371.4,1.371]
[1735668493591,0.5536,3371.8,3371.2,1.371]
[1735668493992,0.85061,3371.8,3371.4,0.29703]
[1735668494797,0.29702,3371.6,3371.3,0.29704]
[1735668494999,0.5152,3371.5,3371.4,0.29704]
[1735668495194,0.5152,3371.5,3370.7,10.71311609]
[1735668495399,0.29705,3371.3,3370.9,0.29708]
[1735668495693,0.29705,3371.3,3371.0,0.29707]
[1735668495905,3.699,3371.4,3370.7,7.46486582]
[1735668496089,3.699,3371.4,3371.3,0.29705]
[1735668496497,3.699,3371.4,3370.7,8.20761582]
[1735668496803,3.699,3371.4,3370.9,0.29708]
[1735668496804,0.29705,3371.3,3370.9,0.29708]
[1735668497193,0.29705,3371.3,3370.7,7.46486582]
[1735668497194,3.699,3371.4,3370.7,7.46486582]
[1735668497495,0.4912,3371.4,3371.2,0.29705]
[1735668497895,0.78824,3371.4,3371.1,0.29706]
[1735668498094,0.4912,3371.4,3370.7,7.46486582]
[1735668498296,0.4912,3371.4,3371.0,0.29707]
[1735668498493,0.78825,3371.4,3370.7,7.46486582]
[1735668498795,0.29705,3371.3,3371.0,0.29707]
[1735668498998,0.4912,3371.4,3370.8,1.37]
[1735668499199,0.29707,3371.1,3370.8,1.37]
[1735668499506,0.29712,3370.5,3370.3,3.2078]
[1735668499703,0.29711,3370.7,3370.2,0.29714]
[1735668499906,0.5204,3370.6,3370.0,4.61925027]
[1735668500103,0.29713,3370.4,3370.0,4.91641027]
[1735668500306,0.29715,3370.2,3370.0,4.61925027]
[1735668500496,0.78735,3370.1,3370.0,4.61925027]
[1735668501001,0.4902,3370.1,3369.5,1.6672]
[1735668501203,0.29717,3369.9,3369.5,1.6672]
[1735668501497,0.4902,3370.1,3369.5,1.6672]
[1735668501498,0.29719,3369.8,3369.5,1.37]
[1735668501702,0.2972,3369.6,3369.5,1.37]
[1735668502008,0.2972,3369.6,3369.3,4.61925027]
[1735668502405,4.2567,3369.8,3369.3,4.61925027]
[1735668502616,0.2972,3369.6,3369.2,0.29723]
[1735668502908,4.2567,3369.8,3369.0,3.50504]
[1735668502909,0.29722,3369.4,3369.0,3.50504]
[1735668503099,0.80682,3369.3,3369.0,3.2078]
[1735668503607,0.5096,3369.3,3369.1,0.29724]
[1735668503801,0.5096,3369.3,3369.0,3.2078]
[1735668504004,0.5096,3369.3,3369.2,0.29723]
[1735668505111,1.0489,3369.8,3369.0,3.2078]
[1735668505307,1.0489,3369.8,3369.6,0.29719]
[1735668505605,0.5036,3370.1,3370.0,0.29716]
[1735668505997,4.2355,3370.6,3369.8,3.95075]
[1735668506203,0.80068,3371.0,3370.5,0.29711]
[1735668506402,0.5036,3371.0,3370.9,0.29708]
[1735668506606,0.5036,3371.0,3370.7,0.2971]
[1735668507007,0.5036,3371.0,3370.6,1.37]
[1735668507209,0.80068,3371.0,3370.6,1.66711]
[1735668507417,0.29709,3370.9,3370.6,1.37]
[1735668507705,0.80067,3371.0,3370.6,1.6671]
[1735668507909,0.29709,3370.9,3370.6,1.37]
[1735668508210,0.29709,3370.8,3370.6,1.37]
[1735668508508,0.2971,3370.8,3370.6,1.37]
[1735668509404,0.5036,3371.0,3370.6,1.37]
[1735668510107,0.5036,3371.0,3370.4,0.29713]
[1735668510310,0.2971,3370.8,3370.4,0.29713]
[1735668510603,0.2971,3370.7,3370.4,0.29713]
[1735668511011,0.2971,3370.8,3370.4,0.29713]
[1735668512504,0.29708,3370.9,3370.4,0.29712]
[1735668512704,0.2971,3370.8,3370.5,0.29712]
[1735668512904,0.5036,3371.0,3370.2,1.37]
[1735668513109,3.2078,3370.7,3370.0,0.29716]
[1735668513411,5.5036,3371.0,3369.9,1.37]
[1735668513601,3.74,3370.6,3369.9,1.66717]
[1735668513911,3.2078,3370.2,3369.6,1.37]
[1735668514115,0.82526,3370.1,3369.8,0.29718]
[1735668514405,0.29716,3370.0,3369.7,0.29719]
[1735668514610,0.82525,3370.1,3369.7,0.29719]
[1735668514802,0.5281,3370.1,3369.4,1.37]
[1735668515007,3.2078,3369.8,3369.1,4.5778]
[1735668515205,0.5322,3369.7,3369.1,1.37]
[1735668515412,0.29723,3369.3,3369.1,1.37]
[1735668515607,0.5281,3369.2,3369.1,1.37]
[1735668515807,0.5281,3369.2,3368.7,3.2078]
[1735668516006,0.5281,3369.2,3369.0,0.29725]
[1735668516202,0.5281,3369.2,3369.1,0.29724]
[1735668516401,0.5211,3369.6,3369.5,0.29721]
[1735668516702,3.2078,3369.9,3369.3,0.74307]
[1735668516910,3.2078,3369.9,3369.7,0.29718]
[1735668517506,0.81086,3370.0,3369.7,0.29718]
[1735668517707,0.81086,3370.0,3369.3,2.88606582]
[1735668517708,0.29717,3369.9,3369.4,0.29721]
[1735668517909,0.29717,3369.9,3369.1,3.2078]
[1735668518205,3.2078,3369.7,3368.7,3.2078]
[1735668518411,3.2078,3369.7,3369.1,0.29724]
[1735668518609,0.29721,3369.5,3368.8,0.29727]
[1735668518804,0.2972,3369.6,3369.2,0.29723]
[1735668519004,0.29721,3369.5,3369.2,0.29723]
[1735668519606,0.29721,3369.4,3369.2,0.29723]
[1735668519807,3.2078,3369.7,3369.4,0.29721]
[1735668520013,3.2078,3369.7,3369.2,1.371]
[1735668520310,3.2078,3369.7,3369.6,0.2972]
[1735668520506,0.5137,3370.0,3369.4,2.88606582]
[1735668520709,0.5137,3370.0,3369.5,3.2078]
[1735668520907,0.81086,3370.0,3369.7,0.29719]
[1735668521107,0.5137,3370.0,3369.5,3.2078]
[1735668521410,0.5137,3370.0,3369.9,0.29717]
[1735668522305,0.5137,3370.0,3369.8,0.29717]
[1735668522512,0.5137,3370.0,3369.5,3.2078]
[1735668522913,0.81087,3370.0,3369.6,0.2972]
[1735668523112,0.81087,3370.0,3369.7,0.29719]
[1735668523510,0.5137,3370.0,3369.5,3.2078]
[1735668523712,0.5137,3370.0,3369.7,0.29718]
[1735668523909,0.5137,3370.0,3369.5,3.2078]
[1735668524214,0.2972,3369.6,3369.5,3.2078]
[1735668526312,6.09386582,3369.6,3368.5,3.2078]
[1735668526617,3.2078,3369.2,3368.1,3.2078]
[1735668526820,0.4973,3369.1,3368.1,3.2078]
[1735668527110,0.2973,3368.5,3368.3,0.29731]
[1735668527315,0.29728,3368.7,3368.1,3.2078]
[1735668527510,0.29728,3368.7,3368.4,0.2973]
[1735668528223,3.2078,3368.8,3367.6,7.82705027]
[1735668528518,0.29726,3368.9,3368.6,0.29728]
[1735668528714,0.29725,3369.0,3368.5,0.29729]
[1735668529011,3.2078,3369.6,3368.8,3.2078]
[1735668529218,3.2078,3369.6,3369.5,0.29721]
[1735668530114,0.4846,3370.0,3369.4,0.29721]
[1735668530115,0.78177,3370.0,3369.4,0.29721]
[1735668530314,0.78177,3370.0,3369.6,0.29719]
[1735668531016,0.78177,3370.0,3369.7,0.29719]
[1735668531217,0.4846,3370.0,3369.6,3.2078]
[1735668531418,0.29717,3369.9,3369.6,3.50499]
[1735668531617,0.4846,3370.0,3369.6,3.50499]
[1735668531818,0.78177,3370.0,3369.6,0.29719]
[1735668532220,0.78177,3370.0,3369.3,1.37]
[1735668532520,0.29718,3369.9,3369.5,0.2972]
[1735668532822,0.29717,3369.9,3369.6,0.29719]
[1735668533320,0.4846,3370.0,3369.6,3.2078]
[1735668533524,0.4846,3370.0,3369.9,0.29717]
[1735668533711,0.98,3370.4,3369.6,3.2078]
[1735668533916,1.27713,3370.4,3370.1,0.29715]
[1735668534414,0.98,3370.4,3369.6,3.2078]
[1735668534620,0.29714,3370.3,3370.0,0.29716]
[1735668534817,0.98,3370.4,3369.6,3.2078]
[1735668535038,0.29717,3370.0,3369.7,0.29719]
[1735668535312,0.29714,3370.3,3370.0,0.29716]
[1735668535518,4.48493,3370.4,3370.0,0.29715]
[1735668535717,0.29714,3370.3,3370.0,0.29715]
[1735668536418,4.1878,3370.4,3369.6,3.2078]
[1735668536619,4.1878,3370.4,3369.8,0.29718]
[1735668536917,4.1878,3370.4,3369.6,3.2078]
[1735668537126,0.29715,3370.2,3369.6,3.2078]
[1735668537316,0.29715,3370.1,3369.8,0.29717]
[1735668537622,0.29715,3370.2,3369.8,0.29717]
[1735668537824,0.29715,3370.1,3369.6,4.5768]
[1735668538016,4.1878,3370.4,3369.9,0.29717]
[1735668538318,0.29714,3370.2,3369.8,0.29718]
[1735668538919,4.1878,3370.4,3369.6,3.2078]
[1735668539118,0.29714,3370.3,3369.9,0.29716]
[1735668540237,0.98,3370.4,3369.6,4.5768]
[1735668540616,0.29714,3370.3,3369.6,4.5768]
[1735668540817,0.5102,3370.7,3369.6,4.5768]
[1735668541115,1.0073,3370.7,3369.8,3.62902582]
[1735668541319,0.5102,3370.7,3370.6,0.29711]
[1735668541525,0.5102,3370.7,3370.6,3.18317582]
[1735668541724,2.27630036,3371.1,3370.6,2.88606582]
[1735668541914,2.27630036,3371.1,3371.0,0.29707]
[1735668542416,2.27630036,3371.1,3370.8,0.29708]
[1735668542726,2.27630036,3371.1,3370.9,0.29708]
[1735668542918,4.00596,3371.2,3370.8,0.29709]
[1735668543217,0.29707,3371.1,3370.7,0.2971]
[1735668543417,0.4951,3371.1,3370.7,0.2971]
[1735668543624,0.79216,3371.1,3370.7,0.29709]
[1735668543819,0.4951,3371.1,3370.6,4.61925027]
[1735668544021,0.2971,3370.7,3370.6,4.61925027]
[1735668544218,0.29712,3370.6,3370.2,0.29714]
[1735668544424,0.29712,3370.5,3370.1,0.29715]
[1735668544624,0.81373,3370.4,3370.1,0.29715]
[1735668544828,0.5166,3370.4,3370.0,3.2078]
[1735668545028,3.2078,3370.1,3369.9,5.98825027]
[1735668545322,3.50496,3370.1,3369.9,5.98825027]
[1735668545531,3.2078,3370.1,3369.9,1.369]
[1735668546042,3.2078,3370.1,3369.9,1.66617]
[1735668546223,3.2078,3370.1,3369.9,1.369]
[1735668546418,3.2078,3370.1,3370.0,0.29716]
[1735668546731,3.2078,3370.1,3369.6,3.2078]
[1735668546732,3.2078,3370.1,3369.6,4.5768]
[1735668546940,3.2078,3370.1,3369.9,0.29716]
[1735668547231,3.2078,3370.1,3369.8,0.29717]
[1735668547421,3.50495,3370.1,3369.8,0.29717]
[1735668547616,3.2078,3370.1,3369.6,3.2078]
[1735668547823,0.29717,3369.9,3369.6,0.29719]
[1735668548027,0.80007,3370.0,3369.3,1.369]
[1735668548228,0.80007,3370.0,3369.7,0.29718]
[1735668548429,0.29717,3369.9,3369.6,0.29719]
[1735668548626,0.5029,3370.0,3369.3,1.369]
[1735668548825,0.4907,3370.3,3369.4,2.88606582]
[1735668549025,0.4907,3370.3,3370.1,0.29714]
[1735668549225,0.4907,3370.3,3370.2,0.29714]
[1735668549424,0.4907,3370.3,3370.1,0.29715]
[1735668549725,0.4907,3370.3,3369.7,1.369]
[1735668549930,0.4907,3370.3,3370.1,0.29715]
[1735668550124,0.4907,3370.3,3369.7,1.369]
[1735668550125,0.4907,3370.3,3370.2,0.29714]
[1735668550426,0.4907,3370.3,3369.7,2.11196]
[1735668550627,0.4907,3370.3,3369.7,1.369]
[1735668550828,0.4907,3370.3,3370.0,0.29716]